[Event "Titled Tuesday Blitz December 7 2021"]
[White "Mirzoev, Azer"]
[Black "Manukian, Artak"]
[WhiteFideId "13400304"]
[BlackFideId "13301373"]
[WhiteElo "2525"]
[BlackElo "2398"]
[Result "1-0"]
[Round "03"]
[TimeControl "180+1"]
[Date "2021.12.07"]
[WhiteClock "0:00:08"]
[BlackClock "0:00:02"]

1. c4 {[%clk 0:03:00]}  Nf6 {[%clk 0:02:53]} 2. Nc3 {[%clk 0:02:59]}  g6 {[%clk 0:02:52]} 3. Nf3 {[%clk 0:02:59]}  Bg7 {[%clk 0:02:52]} 4. d4 {[%clk 0:02:59]}  d5 {[%clk 0:02:52]} 5. Qa4+ {[%clk 0:02:55]}  Qd7 {[%clk 0:02:31]} 6. Qxd7+ {[%clk 0:02:49]}  Bxd7 {[%clk 0:02:13]} 7. cxd5 {[%clk 0:02:49]}  Bf5 {[%clk 0:02:12]} 8. Bf4 {[%clk 0:02:45]}  Na6 {[%clk 0:02:09]} 9. e3 {[%clk 0:02:43]}  Nb4 {[%clk 0:02:09]} 10. Rc1 {[%clk 0:02:09]}  Nbxd5 {[%clk 0:01:48]} 11. Be5 {[%clk 0:02:00]}  Nxc3 {[%clk 0:01:43]} 12. Rxc3 {[%clk 0:01:58]}  c6 {[%clk 0:01:43]} 13. Rb3 {[%clk 0:01:52]}  O-O-O {[%clk 0:01:40]} 14. Bc4 {[%clk 0:01:45]}  e6 {[%clk 0:01:19]} 15. Ra3 {[%clk 0:01:37]}  a6 {[%clk 0:01:16]} 16. Ke2 {[%clk 0:01:30]}  Ne8 {[%clk 0:00:51]} 17. Bxg7 {[%clk 0:01:22]}  Nxg7 {[%clk 0:00:52]} 18. Rc1 {[%clk 0:01:20]}  Bg4 {[%clk 0:00:41]} 19. h3 {[%clk 0:01:04]}  Bxf3+ {[%clk 0:00:41]} 20. gxf3 {[%clk 0:01:05]}  Nf5 {[%clk 0:00:32]} 21. Bd3 {[%clk 0:01:03]}  Kb8 {[%clk 0:00:19]} 22. f4 {[%clk 0:01:03]}  Nd6 {[%clk 0:00:16]} 23. Ra5 {[%clk 0:01:02]}  Nc8 {[%clk 0:00:14]} 24. Be4 {[%clk 0:00:58]}  Ka7 {[%clk 0:00:10]} 25. Bf3 {[%clk 0:00:56]}  Nb6 {[%clk 0:00:10]} 26. h4 {[%clk 0:00:52]}  h5 {[%clk 0:00:09]} 27. Rg5 {[%clk 0:00:49]}  Nc8 {[%clk 0:00:08]} 28. Rgc5 {[%clk 0:00:42]}  Ne7 {[%clk 0:00:08]} 29. Be4 {[%clk 0:00:42]}  Rd6 {[%clk 0:00:08]} 30. b4 {[%clk 0:00:41]}  Rhd8 {[%clk 0:00:08]} 31. a4 {[%clk 0:00:40]}  Kb6 {[%clk 0:00:08]} 32. Rb1 {[%clk 0:00:20]}  Nd5 {[%clk 0:00:04]} 33. Bf3 {[%clk 0:00:16]}  Nc7 {[%clk 0:00:03]} 34. Ke1 {[%clk 0:00:13]}  R8d7 {[%clk 0:00:03]} 35. Be2 {[%clk 0:00:12]}  Rd5 {[%clk 0:00:02]} 36. Bf3 {[%clk 0:00:11]}  Rxc5 {[%clk 0:00:01]} 37. bxc5+ {[%clk 0:00:11]}  Ka7 {[%clk 0:00:02]} 38. Be4 {[%clk 0:00:10]}  Nd5 {[%clk 0:00:02]} 39. Rb3 {[%clk 0:00:09]}  Nf6 {[%clk 0:00:02]} 40. Bf3 {[%clk 0:00:08]} 1-0


[Site "https://www.chess.com"]

[Event "Titled Tuesday Blitz December 7 2021"]
[White "Nevednichy, Vladislav"]
[Black "Djordjevic, Vuk"]
[WhiteFideId "1205730"]
[BlackFideId "902098"]
[WhiteElo "2379"]
[BlackElo "2463"]
[Result "0-1"]
[Round "03"]
[TimeControl "180+1"]
[Date "2021.12.07"]
[WhiteClock "0:00:15"]
[BlackClock "0:00:06"]

1. e4 {[%clk 0:03:00]}  e6 {[%clk 0:02:59]} 2. d4 {[%clk 0:02:59]}  d5 {[%clk 0:02:59]} 3. exd5 {[%clk 0:02:59]}  exd5 {[%clk 0:02:59]} 4. Nf3 {[%clk 0:03:00]}  Bd6 {[%clk 0:02:59]} 5. c4 {[%clk 0:02:59]}  dxc4 {[%clk 0:02:58]} 6. Bxc4 {[%clk 0:02:59]}  Nf6 {[%clk 0:02:59]} 7. Nc3 {[%clk 0:02:59]}  O-O {[%clk 0:02:59]} 8. O-O {[%clk 0:02:59]}  Bg4 {[%clk 0:02:59]} 9. h3 {[%clk 0:02:58]}  Bh5 {[%clk 0:02:58]} 10. g4 {[%clk 0:02:56]}  Bg6 {[%clk 0:02:59]} 11. Ne5 {[%clk 0:02:56]}  Ne4 {[%clk 0:02:36]} 12. Nxe4 {[%clk 0:02:33]}  Bxe4 {[%clk 0:02:35]} 13. Qb3 {[%clk 0:02:33]}  Bxe5 {[%clk 0:02:20]} 14. dxe5 {[%clk 0:02:33]}  Nc6 {[%clk 0:02:11]} 15. Qe3 {[%clk 0:02:15]}  Qd4 {[%clk 0:02:08]} 16. Qxd4 {[%clk 0:01:48]}  Nxd4 {[%clk 0:02:08]} 17. f4 {[%clk 0:01:46]}  b5 {[%clk 0:01:57]} 18. Bb3 {[%clk 0:01:46]}  Rfd8 {[%clk 0:01:43]} 19. Be3 {[%clk 0:01:37]}  Nxb3 {[%clk 0:01:35]} 20. axb3 {[%clk 0:01:36]}  Rd3 {[%clk 0:01:33]} 21. Bxa7 {[%clk 0:01:33]}  Rg3+ {[%clk 0:01:20]} 22. Kf2 {[%clk 0:01:31]}  Rf3+ {[%clk 0:01:15]} 23. Ke2 {[%clk 0:01:28]}  Rxb3 {[%clk 0:01:13]} 24. Bd4 {[%clk 0:01:12]}  Rd8 {[%clk 0:01:12]} 25. Rad1 {[%clk 0:01:11]}  Rxh3 {[%clk 0:01:07]} 26. f5 {[%clk 0:01:05]}  h6 {[%clk 0:00:36]} 27. Rf4 {[%clk 0:01:00]}  Bd5 {[%clk 0:00:34]} 28. Rd2 {[%clk 0:00:52]}  Bc4+ {[%clk 0:00:29]} 29. Kf2 {[%clk 0:00:52]}  c5 {[%clk 0:00:23]} 30. Be3 {[%clk 0:00:50]}  Rh2+ {[%clk 0:00:23]} 31. Ke1 {[%clk 0:00:49]}  Rh1+ {[%clk 0:00:18]} 32. Kf2 {[%clk 0:00:49]}  Rh2+ {[%clk 0:00:08]} 33. Ke1 {[%clk 0:00:47]}  Rdxd2 {[%clk 0:00:08]} 34. Bxd2 {[%clk 0:00:47]}  Re2+ {[%clk 0:00:09]} 35. Kd1 {[%clk 0:00:47]}  Rg2 {[%clk 0:00:09]} 36. Be3 {[%clk 0:00:38]}  Be2+ {[%clk 0:00:09]} 37. Kc1 {[%clk 0:00:38]}  c4 {[%clk 0:00:08]} 38. e6 {[%clk 0:00:36]}  fxe6 {[%clk 0:00:02]} 39. fxe6 {[%clk 0:00:36]}  Bxg4 {[%clk 0:00:02]} 40. e7 {[%clk 0:00:35]}  Bh5 {[%clk 0:00:03]} 41. Rf8+ {[%clk 0:00:33]}  Kh7 {[%clk 0:00:03]} 42. e8=Q {[%clk 0:00:33]}  Bxe8 {[%clk 0:00:04]} 43. Rxe8 {[%clk 0:00:34]}  Re2 {[%clk 0:00:04]} 44. Re7 {[%clk 0:00:33]}  h5 {[%clk 0:00:04]} 45. Bc5 {[%clk 0:00:26]}  Rxe7 {[%clk 0:00:04]} 46. Bxe7 {[%clk 0:00:27]}  Kg6 {[%clk 0:00:04]} 47. Kd2 {[%clk 0:00:27]}  Kf5 {[%clk 0:00:05]} 48. Ke3 {[%clk 0:00:27]}  g5 {[%clk 0:00:04]} 49. Kf3 {[%clk 0:00:25]}  h4 {[%clk 0:00:05]} 50. Ke3 {[%clk 0:00:23]}  Kg4 {[%clk 0:00:04]} 51. Bf6 {[%clk 0:00:19]}  h3 {[%clk 0:00:03]} 52. Be5 {[%clk 0:00:19]}  Kf5 {[%clk 0:00:04]} 53. Bh2 {[%clk 0:00:19]}  b4 {[%clk 0:00:05]} 54. Kd4 {[%clk 0:00:18]}  c3 {[%clk 0:00:05]} 55. bxc3 {[%clk 0:00:17]}  bxc3 {[%clk 0:00:04]} 56. Kxc3 {[%clk 0:00:17]}  Ke4 {[%clk 0:00:05]} 57. Kd2 {[%clk 0:00:17]}  Kf3 {[%clk 0:00:06]} 58. Be5 {[%clk 0:00:15]}  g4 {[%clk 0:00:05]} 59. Ke1 {[%clk 0:00:15]}  g3 {[%clk 0:00:05]} 60. Kf1 {[%clk 0:00:15]}  h2 {[%clk 0:00:06]} 61. Ke1 {[%clk 0:00:15]}  h1=Q+ {[%clk 0:00:06]} 62. Kd2 {[%clk 0:00:15]}  Qg2+ {[%clk 0:00:06]} 0-1


[Site "https://www.chess.com"]

[Event "Titled Tuesday Blitz December 7 2021"]
[White "Ozen, Bahadir"]
[Black "Walter, Szymon"]
[WhiteFideId "6337058"]
[BlackFideId "1172590"]
[WhiteElo "2503"]
[BlackElo "2227"]
[Result "1-0"]
[Round "03"]
[TimeControl "180+1"]
[Date "2021.12.07"]
[WhiteClock "0:00:08"]
[BlackClock "0:00:10"]

1. Nf3 {[%clk 0:03:00]}  b6 {[%clk 0:02:56]} 2. g3 {[%clk 0:02:59]}  Bb7 {[%clk 0:02:56]} 3. Bg2 {[%clk 0:03:00]}  g6 {[%clk 0:02:56]} 4. O-O {[%clk 0:03:00]}  Bg7 {[%clk 0:02:57]} 5. d4 {[%clk 0:02:54]}  Nf6 {[%clk 0:02:56]} 6. Bg5 {[%clk 0:02:34]}  O-O {[%clk 0:02:53]} 7. Nbd2 {[%clk 0:02:31]}  h6 {[%clk 0:02:36]} 8. Bxf6 {[%clk 0:02:30]}  exf6 {[%clk 0:02:37]} 9. Ne1 {[%clk 0:02:22]}  Bxg2 {[%clk 0:02:09]} 10. Nxg2 {[%clk 0:02:23]}  f5 {[%clk 0:02:08]} 11. e3 {[%clk 0:02:22]}  d5 {[%clk 0:02:08]} 12. Nf4 {[%clk 0:02:15]}  c6 {[%clk 0:01:46]} 13. Rc1 {[%clk 0:02:09]}  Nd7 {[%clk 0:01:44]} 14. c4 {[%clk 0:02:09]}  dxc4 {[%clk 0:01:45]} 15. Nxc4 {[%clk 0:02:08]}  c5 {[%clk 0:01:45]} 16. dxc5 {[%clk 0:01:38]}  Nxc5 {[%clk 0:01:46]} 17. Qe2 {[%clk 0:01:32]}  Qf6 {[%clk 0:01:09]} 18. Nd5 {[%clk 0:01:28]}  Qg5 {[%clk 0:01:09]} 19. h4 {[%clk 0:01:26]}  Qg4 {[%clk 0:01:09]} 20. Qxg4 {[%clk 0:01:22]}  fxg4 {[%clk 0:01:10]} 21. Rfd1 {[%clk 0:01:21]}  Rad8 {[%clk 0:01:06]} 22. Ne7+ {[%clk 0:01:02]}  Kh7 {[%clk 0:01:05]} 23. Nc6 {[%clk 0:01:03]}  Rxd1+ {[%clk 0:00:52]} 24. Rxd1 {[%clk 0:01:04]}  b5 {[%clk 0:00:53]} 25. Nd6 {[%clk 0:00:57]}  Bxb2 {[%clk 0:00:48]} 26. Nxb5 {[%clk 0:00:53]}  a6 {[%clk 0:00:46]} 27. Nd6 {[%clk 0:00:54]}  Kg7 {[%clk 0:00:31]} 28. Rd5 {[%clk 0:00:52]}  Ne6 {[%clk 0:00:28]} 29. h5 {[%clk 0:00:52]}  Ng5 {[%clk 0:00:21]} 30. hxg6 {[%clk 0:00:39]}  fxg6 {[%clk 0:00:22]} 31. Kg2 {[%clk 0:00:39]}  Nh3 {[%clk 0:00:21]} 32. Ne4 {[%clk 0:00:38]}  h5 {[%clk 0:00:18]} 33. Rd2 {[%clk 0:00:37]}  Bf6 {[%clk 0:00:18]} 34. Rd7+ {[%clk 0:00:37]}  Kh6 {[%clk 0:00:18]} 35. Rd6 {[%clk 0:00:36]}  Bg7 {[%clk 0:00:18]} 36. Ne7 {[%clk 0:00:36]}  Kh7 {[%clk 0:00:18]} 37. Nxg6 {[%clk 0:00:28]}  Re8 {[%clk 0:00:18]} 38. Nd2 {[%clk 0:00:27]}  Rc8 {[%clk 0:00:16]} 39. Nf4 {[%clk 0:00:23]}  Nxf4+ {[%clk 0:00:15]} 40. exf4 {[%clk 0:00:16]}  Rc2 {[%clk 0:00:15]} 41. Ne4 {[%clk 0:00:16]}  Rxa2 {[%clk 0:00:16]} 42. Ng5+ {[%clk 0:00:17]}  Kg8 {[%clk 0:00:15]} 43. f5 {[%clk 0:00:18]}  Be5 {[%clk 0:00:13]} 44. Rg6+ {[%clk 0:00:12]}  Kf8 {[%clk 0:00:13]} 45. Rh6 {[%clk 0:00:11]}  Kg8 {[%clk 0:00:08]} 46. Ne6 {[%clk 0:00:10]}  a5 {[%clk 0:00:05]} 47. Rxh5 {[%clk 0:00:09]}  a4 {[%clk 0:00:05]} 48. Rg5+ {[%clk 0:00:07]}  Kf7 {[%clk 0:00:06]} 49. Rxg4 {[%clk 0:00:08]}  a3 {[%clk 0:00:06]} 50. Ra4 {[%clk 0:00:08]}  Kf6 {[%clk 0:00:07]} 51. Nc5 {[%clk 0:00:07]}  Bc3 {[%clk 0:00:05]} 52. Ne4+ {[%clk 0:00:06]}  Kf7 {[%clk 0:00:06]} 53. Nxc3 {[%clk 0:00:07]}  Ra1 {[%clk 0:00:06]} 54. g4 {[%clk 0:00:07]}  Kg7 {[%clk 0:00:07]} 55. g5 {[%clk 0:00:07]}  Kf7 {[%clk 0:00:07]} 56. f6 {[%clk 0:00:08]}  Kg6 {[%clk 0:00:07]} 57. f4 {[%clk 0:00:09]}  Kf7 {[%clk 0:00:08]} 58. Ra7+ {[%clk 0:00:09]}  Kg6 {[%clk 0:00:09]} 59. f7 {[%clk 0:00:09]}  Kh5 {[%clk 0:00:09]} 60. f8=Q {[%clk 0:00:08]}  Kg4 {[%clk 0:00:10]} 61. Qc8+ {[%clk 0:00:08]} 1-0


[Site "https://www.chess.com"]

[Event "Titled Tuesday Blitz December 7 2021"]
[White "Papasimakopoulos, Alexandros"]
[Black "Terry, Renato"]
[WhiteFideId "4244125"]
[BlackFideId "3803457"]
[WhiteElo "2394"]
[BlackElo "2577"]
[Result "1/2-1/2"]
[Round "03"]
[TimeControl "180+1"]
[Date "2021.12.07"]
[WhiteClock "0:00:19"]
[BlackClock "0:00:08"]

1. d4 {[%clk 0:02:30]}  Nf6 {[%clk 0:02:58]} 2. c4 {[%clk 0:02:29]}  b6 {[%clk 0:02:58]} 3. f3 {[%clk 0:02:29]}  Nc6 {[%clk 0:02:58]} 4. d5 {[%clk 0:02:25]}  Ne5 {[%clk 0:02:57]} 5. e4 {[%clk 0:02:26]}  Ng6 {[%clk 0:02:56]} 6. Nc3 {[%clk 0:02:24]}  e5 {[%clk 0:02:56]} 7. Be3 {[%clk 0:02:25]}  Bc5 {[%clk 0:02:56]} 8. Qd2 {[%clk 0:02:23]}  c6 {[%clk 0:02:37]} 9. Bd3 {[%clk 0:02:22]}  Bxe3 {[%clk 0:02:33]} 10. Qxe3 {[%clk 0:02:22]}  Nf4 {[%clk 0:02:34]} 11. Qd2 {[%clk 0:02:17]}  Qe7 {[%clk 0:02:20]} 12. g3 {[%clk 0:02:15]}  Nxd3+ {[%clk 0:02:16]} 13. Qxd3 {[%clk 0:02:14]}  Ba6 {[%clk 0:02:12]} 14. Nge2 {[%clk 0:02:09]}  O-O {[%clk 0:02:12]} 15. b3 {[%clk 0:01:58]}  Rac8 {[%clk 0:01:40]} 16. O-O {[%clk 0:01:55]}  cxd5 {[%clk 0:01:36]} 17. Nxd5 {[%clk 0:01:55]}  Nxd5 {[%clk 0:01:36]} 18. Qxd5 {[%clk 0:01:52]}  b5 {[%clk 0:01:37]} 19. Rac1 {[%clk 0:01:41]}  bxc4 {[%clk 0:01:35]} 20. bxc4 {[%clk 0:01:42]}  Rc5 {[%clk 0:01:33]} 21. Qd2 {[%clk 0:01:42]}  Rfc8 {[%clk 0:01:32]} 22. Rfd1 {[%clk 0:01:42]}  R8c7 {[%clk 0:01:15]} 23. Nc3 {[%clk 0:01:38]}  Bxc4 {[%clk 0:01:14]} 24. Kg2 {[%clk 0:01:36]}  h5 {[%clk 0:01:12]} 25. h4 {[%clk 0:01:36]}  R5c6 {[%clk 0:01:01]} 26. Nd5 {[%clk 0:00:58]}  Bxd5 {[%clk 0:00:46]} 27. exd5 {[%clk 0:00:59]}  Rxc1 {[%clk 0:00:45]} 28. Rxc1 {[%clk 0:01:00]}  Rxc1 {[%clk 0:00:40]} 29. Qxc1 {[%clk 0:01:01]}  d6 {[%clk 0:00:34]} 30. Qc8+ {[%clk 0:00:59]}  Kh7 {[%clk 0:00:34]} 31. a4 {[%clk 0:00:56]}  g6 {[%clk 0:00:33]} 32. Qc4 {[%clk 0:00:44]}  f5 {[%clk 0:00:28]} 33. a5 {[%clk 0:00:43]}  Kg7 {[%clk 0:00:24]} 34. a6 {[%clk 0:00:44]}  e4 {[%clk 0:00:25]} 35. Kf2 {[%clk 0:00:41]}  exf3 {[%clk 0:00:22]} 36. Qd4+ {[%clk 0:00:41]}  Kf7 {[%clk 0:00:21]} 37. Kxf3 {[%clk 0:00:41]}  Qc7 {[%clk 0:00:20]} 38. Qe3 {[%clk 0:00:38]}  Qe7 {[%clk 0:00:17]} 39. Qd4 {[%clk 0:00:38]}  Qd7 {[%clk 0:00:16]} 40. Qh8 {[%clk 0:00:35]}  Qb5 {[%clk 0:00:11]} 41. Qh7+ {[%clk 0:00:35]}  Kf6 {[%clk 0:00:11]} 42. Qh8+ {[%clk 0:00:30]}  Kf7 {[%clk 0:00:08]} 43. Qh7+ {[%clk 0:00:30]}  Kf6 {[%clk 0:00:08]} 44. Qh8+ {[%clk 0:00:19]}  Kf7 {[%clk 0:00:08]} 1/2-1/2


[Site "https://www.chess.com"]

[Event "Titled Tuesday Blitz December 7 2021"]
[White "Piesik, Piotr"]
[Black "Abdilkhair, Abilmansur"]
[WhiteFideId "1136194"]
[BlackFideId "13716417"]
[WhiteElo "2336"]
[BlackElo "2063"]
[Result "1-0"]
[Round "03"]
[TimeControl "180+1"]
[Date "2021.12.07"]
[WhiteClock "0:01:08"]
[BlackClock "0:00:01"]

1. Nf3 {[%clk 0:03:00]}  d5 {[%clk 0:02:58]} 2. g3 {[%clk 0:03:00]}  Bg4 {[%clk 0:02:58]} 3. Bg2 {[%clk 0:03:01]}  Nd7 {[%clk 0:02:59]} 4. O-O {[%clk 0:03:01]}  c6 {[%clk 0:02:57]} 5. d3 {[%clk 0:03:01]}  e6 {[%clk 0:02:57]} 6. Nbd2 {[%clk 0:03:02]}  Ngf6 {[%clk 0:02:54]} 7. e4 {[%clk 0:03:02]}  dxe4 {[%clk 0:02:47]} 8. dxe4 {[%clk 0:03:03]}  Be7 {[%clk 0:02:20]} 9. h3 {[%clk 0:03:02]}  Bh5 {[%clk 0:02:19]} 10. Qe1 {[%clk 0:03:02]}  O-O {[%clk 0:02:17]} 11. Nb3 {[%clk 0:03:01]}  Qb6 {[%clk 0:02:09]} 12. Be3 {[%clk 0:02:57]}  Qa6 {[%clk 0:02:08]} 13. Nfd2 {[%clk 0:02:57]}  e5 {[%clk 0:01:55]} 14. g4 {[%clk 0:02:54]}  Bg6 {[%clk 0:01:55]} 15. f3 {[%clk 0:02:48]}  Rfd8 {[%clk 0:01:51]} 16. Qg3 {[%clk 0:02:43]}  Ne8 {[%clk 0:01:41]} 17. Rfd1 {[%clk 0:02:38]}  f6 {[%clk 0:01:20]} 18. Bf1 {[%clk 0:02:38]}  Qa4 {[%clk 0:01:20]} 19. Nc4 {[%clk 0:02:33]}  Bf7 {[%clk 0:01:16]} 20. Nbd2 {[%clk 0:02:25]}  Bc5 {[%clk 0:01:06]} 21. Qf2 {[%clk 0:02:14]}  Bxe3 {[%clk 0:00:49]} 22. Qxe3 {[%clk 0:02:15]}  b5 {[%clk 0:00:46]} 23. b3 {[%clk 0:02:10]}  Qb4 {[%clk 0:00:36]} 24. c3 {[%clk 0:02:01]}  Qe7 {[%clk 0:00:35]} 25. Na5 {[%clk 0:02:00]}  Rdc8 {[%clk 0:00:31]} 26. h4 {[%clk 0:01:52]}  Nc5 {[%clk 0:00:29]} 27. g5 {[%clk 0:01:49]}  Ne6 {[%clk 0:00:24]} 28. Bh3 {[%clk 0:01:47]}  Rc7 {[%clk 0:00:20]} 29. Bxe6 {[%clk 0:01:41]}  Qxe6 {[%clk 0:00:17]} 30. b4 {[%clk 0:01:38]}  Qh3 {[%clk 0:00:16]} 31. Qf2 {[%clk 0:01:37]}  Bh5 {[%clk 0:00:14]} 32. Rf1 {[%clk 0:01:31]}  Rd8 {[%clk 0:00:12]} 33. Ndb3 {[%clk 0:01:25]}  fxg5 {[%clk 0:00:10]} 34. hxg5 {[%clk 0:01:25]}  Rd3 {[%clk 0:00:08]} 35. Qg2 {[%clk 0:01:25]}  Qxg2+ {[%clk 0:00:06]} 36. Kxg2 {[%clk 0:01:26]}  Rxc3 {[%clk 0:00:07]} 37. Rac1 {[%clk 0:01:24]}  Bxf3+ {[%clk 0:00:04]} 38. Rxf3 {[%clk 0:01:23]}  Rxc1 {[%clk 0:00:02]} 39. Nxc1 {[%clk 0:01:24]}  Nd6 {[%clk 0:00:03]} 40. Rc3 {[%clk 0:01:20]}  Nxe4 {[%clk 0:00:03]} 41. Rxc6 {[%clk 0:01:20]}  Rd7 {[%clk 0:00:02]} 42. g6 {[%clk 0:01:14]}  hxg6 {[%clk 0:00:02]} 43. Ncb3 {[%clk 0:01:12]}  Nf6 {[%clk 0:00:01]} 44. Re6 {[%clk 0:01:08]} 1-0


[Site "https://www.chess.com"]

[Event "Titled Tuesday Blitz December 7 2021"]
[White "Preotu, Razvan"]
[Black "Riehle, Marco"]
[WhiteFideId "2613280"]
[BlackFideId "12904392"]
[WhiteElo "2407"]
[BlackElo "2462"]
[Result "1-0"]
[Round "03"]
[TimeControl "180+1"]
[Date "2021.12.07"]
[WhiteClock "0:00:24"]
[BlackClock "0:00:52"]

1. e4 {[%clk 0:03:00]}  e5 {[%clk 0:02:59]} 2. Nf3 {[%clk 0:03:00]}  Nf6 {[%clk 0:02:59]} 3. d4 {[%clk 0:03:00]}  exd4 {[%clk 0:03:00]} 4. e5 {[%clk 0:02:57]}  Ne4 {[%clk 0:02:59]} 5. Qxd4 {[%clk 0:02:54]}  f5 {[%clk 0:02:59]} 6. Be3 {[%clk 0:02:09]}  Nc6 {[%clk 0:02:57]} 7. Qd5 {[%clk 0:02:03]}  Nb4 {[%clk 0:02:45]} 8. Qb3 {[%clk 0:02:02]}  d5 {[%clk 0:02:44]} 9. exd6 {[%clk 0:01:34]}  Bxd6 {[%clk 0:02:43]} 10. Bc4 {[%clk 0:01:31]}  Nc6 {[%clk 0:02:28]} 11. O-O {[%clk 0:01:26]}  Qf6 {[%clk 0:02:22]} 12. Nc3 {[%clk 0:01:24]}  Nxc3 {[%clk 0:02:21]} 13. bxc3 {[%clk 0:01:25]}  Bd7 {[%clk 0:02:13]} 14. Bg5 {[%clk 0:01:22]}  Qg6 {[%clk 0:02:07]} 15. Rfe1+ {[%clk 0:01:18]}  Kf8 {[%clk 0:02:06]} 16. Qxb7 {[%clk 0:00:56]}  Rb8 {[%clk 0:02:05]} 17. Qa6 {[%clk 0:00:56]}  Rb6 {[%clk 0:01:45]} 18. Qa4 {[%clk 0:00:56]}  Ne5 {[%clk 0:01:45]} 19. Nxe5 {[%clk 0:00:55]}  Bxa4 {[%clk 0:01:45]} 20. Nxg6+ {[%clk 0:00:54]}  hxg6 {[%clk 0:01:45]} 21. h4 {[%clk 0:00:50]}  Rc6 {[%clk 0:01:34]} 22. Rab1 {[%clk 0:00:45]}  Rb6 {[%clk 0:01:33]} 23. Bb3 {[%clk 0:00:36]}  Bxb3 {[%clk 0:01:32]} 24. axb3 {[%clk 0:00:37]}  Kf7 {[%clk 0:01:31]} 25. Ra1 {[%clk 0:00:36]}  a6 {[%clk 0:01:31]} 26. Ra4 {[%clk 0:00:36]}  Rc6 {[%clk 0:01:24]} 27. c4 {[%clk 0:00:34]}  Re8 {[%clk 0:01:24]} 28. Rxe8 {[%clk 0:00:33]}  Kxe8 {[%clk 0:01:25]} 29. Kf1 {[%clk 0:00:34]}  Kf7 {[%clk 0:01:19]} 30. Ke2 {[%clk 0:00:34]}  Be5 {[%clk 0:01:18]} 31. g3 {[%clk 0:00:29]}  Re6 {[%clk 0:01:17]} 32. Kf3 {[%clk 0:00:24]}  Rc6 {[%clk 0:01:15]} 33. Be3 {[%clk 0:00:24]}  Kf6 {[%clk 0:01:11]} 34. c5 {[%clk 0:00:24]}  Re6 {[%clk 0:01:09]} 35. c4 {[%clk 0:00:23]}  Bc3 {[%clk 0:01:06]} 36. b4 {[%clk 0:00:22]}  Kf7 {[%clk 0:01:03]} 37. b5 {[%clk 0:00:22]}  axb5 {[%clk 0:01:03]} 38. cxb5 {[%clk 0:00:23]}  Be5 {[%clk 0:00:59]} 39. Ra7 {[%clk 0:00:23]}  Ke8 {[%clk 0:00:53]} 40. b6 {[%clk 0:00:23]}  cxb6 {[%clk 0:00:54]} 41. cxb6 {[%clk 0:00:24]}  Re7 {[%clk 0:00:49]} 42. Rxe7+ {[%clk 0:00:23]}  Kxe7 {[%clk 0:00:49]} 43. Bf4 {[%clk 0:00:22]}  Bxf4 {[%clk 0:00:47]} 44. Kxf4 {[%clk 0:00:23]}  Kd7 {[%clk 0:00:48]} 45. Kg5 {[%clk 0:00:23]}  Kc6 {[%clk 0:00:49]} 46. Kxg6 {[%clk 0:00:23]}  Kxb6 {[%clk 0:00:50]} 47. Kxg7 {[%clk 0:00:23]}  Kc6 {[%clk 0:00:50]} 48. h5 {[%clk 0:00:24]}  Kd5 {[%clk 0:00:51]} 49. h6 {[%clk 0:00:25]}  f4 {[%clk 0:00:52]} 50. gxf4 {[%clk 0:00:24]} 1-0


[Site "https://www.chess.com"]

[Event "Titled Tuesday Blitz December 7 2021"]
[White "Przybylski, Wojciech"]
[Black "crazy_machine"]
[WhiteFideId "1117599"]
[WhiteElo "2247"]
[BlackElo "2744"]
[Result "1-0"]
[Round "03"]
[TimeControl "180+1"]
[Date "2021.12.07"]
[WhiteClock "0:00:03"]
[BlackClock "0:00:15"]

1. e4 {[%clk 0:03:00]}  c5 {[%clk 0:02:58]} 2. Nf3 {[%clk 0:03:00]}  Nc6 {[%clk 0:02:59]} 3. Bb5 {[%clk 0:03:00]}  g6 {[%clk 0:02:56]} 4. O-O {[%clk 0:02:59]}  Bg7 {[%clk 0:02:55]} 5. Nc3 {[%clk 0:02:57]}  e6 {[%clk 0:02:35]} 6. Bxc6 {[%clk 0:02:55]}  dxc6 {[%clk 0:02:30]} 7. d3 {[%clk 0:02:54]}  e5 {[%clk 0:02:23]} 8. Be3 {[%clk 0:02:48]}  b6 {[%clk 0:02:23]} 9. h3 {[%clk 0:02:44]}  Qe7 {[%clk 0:02:20]} 10. Qd2 {[%clk 0:02:39]}  Nf6 {[%clk 0:02:09]} 11. a4 {[%clk 0:02:35]}  a5 {[%clk 0:02:05]} 12. Nh2 {[%clk 0:02:24]}  Nd7 {[%clk 0:02:01]} 13. f4 {[%clk 0:02:21]}  exf4 {[%clk 0:02:02]} 14. Bxf4 {[%clk 0:02:20]}  Nf8 {[%clk 0:02:00]} 15. e5 {[%clk 0:02:08]}  Ne6 {[%clk 0:02:00]} 16. Bg3 {[%clk 0:02:08]}  Nd4 {[%clk 0:01:57]} 17. Ng4 {[%clk 0:01:59]}  Bxg4 {[%clk 0:01:50]} 18. hxg4 {[%clk 0:01:59]}  O-O {[%clk 0:01:47]} 19. Ne4 {[%clk 0:01:28]}  Bxe5 {[%clk 0:01:36]} 20. Bxe5 {[%clk 0:01:27]}  Qxe5 {[%clk 0:01:37]} 21. Nf6+ {[%clk 0:01:03]}  Kg7 {[%clk 0:01:36]} 22. Rae1 {[%clk 0:00:33]}  Qd6 {[%clk 0:00:43]} 23. Re3 {[%clk 0:00:24]}  h6 {[%clk 0:00:44]} 24. Rh3 {[%clk 0:00:15]}  Rh8 {[%clk 0:00:44]} 25. c3 {[%clk 0:00:15]}  Ne6 {[%clk 0:00:45]} 26. Rhf3 {[%clk 0:00:14]}  Ng5 {[%clk 0:00:45]} 27. Rf4 {[%clk 0:00:03]}  Rad8 {[%clk 0:00:45]} 28. d4 {[%clk 0:00:02]}  cxd4 {[%clk 0:00:44]} 29. Rxd4 {[%clk 0:00:03]}  Qe7 {[%clk 0:00:41]} 30. Kh1 {[%clk 0:00:03]}  Rxd4 {[%clk 0:00:37]} 31. Qxd4 {[%clk 0:00:03]}  Kf8 {[%clk 0:00:16]} 32. Nd7+ {[%clk 0:00:03]}  Ke8 {[%clk 0:00:17]} 33. Qxh8+ {[%clk 0:00:02]}  Kxd7 {[%clk 0:00:17]} 34. Rd1+ {[%clk 0:00:02]}  Ke6 {[%clk 0:00:17]} 35. Qxh6 {[%clk 0:00:03]}  Ne4 {[%clk 0:00:17]} 36. Qf4 {[%clk 0:00:03]}  f5 {[%clk 0:00:17]} 37. Kg1 {[%clk 0:00:03]}  Qc5+ {[%clk 0:00:17]} 38. Kh2 {[%clk 0:00:03]}  Qe7 {[%clk 0:00:15]} 39. Rd4 {[%clk 0:00:03]}  Qh4+ {[%clk 0:00:13]} 40. Kg1 {[%clk 0:00:03]}  Qe1+ {[%clk 0:00:14]} 41. Kh2 {[%clk 0:00:04]}  Qe2 {[%clk 0:00:14]} 42. gxf5+ {[%clk 0:00:03]}  gxf5 {[%clk 0:00:15]} 43. Qh4 {[%clk 0:00:03]}  Ke5 {[%clk 0:00:15]} 44. Qh8+ {[%clk 0:00:03]}  Kf4 {[%clk 0:00:15]} 45. Qh6+ {[%clk 0:00:03]}  Ke5 {[%clk 0:00:15]} 46. Qg7+ {[%clk 0:00:03]}  Kf4 {[%clk 0:00:15]} 47. Qg3# {[%clk 0:00:03]} 1-0


[Site "https://www.chess.com"]